bitfinex-derivatives/quotes_BTCF0:USTF0_20251230
["timestamp","ask_amount","ask_price","bid_price","bid_amount"]
[1767064831231,0.02751163,87093.0,87082.0,0.0001722]
[1767064831535,0.02751163,87092.0,87082.0,0.0001722]
[1767064831829,0.02751163,87091.0,87082.0,0.0001722]
[1767064832029,0.02751163,87090.0,87074.0,0.09772]
[1767064832230,0.0275361,87089.0,87074.0,0.09772]
[1767064832536,0.09772,87097.0,87074.0,0.09772]
[1767064832832,0.02753889,87096.0,87074.0,0.09772]
[1767064833022,0.09772,87097.0,87076.0,0.0001722]
[1767064833023,0.0001722,87094.0,87076.0,0.0001722]
[1767064833226,0.02753889,87093.0,87076.0,0.0001722]
[1767064833417,0.02753889,87092.0,87076.0,0.0001722]
[1767064833615,0.02753889,87091.0,87076.0,0.0001722]
[1767064833828,0.02753889,87090.0,87076.0,0.0001722]
[1767064834030,0.0001722,87094.0,87076.0,0.0001722]
[1767064834228,0.02753864,87093.0,87076.0,0.0001722]
[1767064834424,0.02753864,87092.0,87076.0,0.0001722]
[1767064834728,0.02753864,87091.0,87076.0,0.0001722]
[1767064835030,0.02753864,87090.0,87076.0,0.0001722]
[1767064835328,0.0001722,87094.0,87076.0,0.0001722]
[1767064835529,0.02753392,87093.0,87076.0,0.0001722]
[1767064835731,0.02753392,87092.0,87076.0,0.0001722]
[1767064835929,0.02753392,87091.0,87076.0,0.0001722]
[1767064836131,0.02753392,87090.0,87076.0,0.0001722]
[1767064836323,0.0001722,87094.0,87077.0,0.0114986]
[1767064836625,0.02753314,87093.0,87080.0,0.0114983]
[1767064836832,0.0001722,87094.0,87080.0,0.0114983]
[1767064837032,0.05424631,87117.0,87076.0,0.0001722]
[1767064837033,0.10330478,87141.0,87087.0,0.08236706]
[1767064837326,0.0578,87153.0,87115.0,0.0114936]
[1767064837530,0.09768,87152.0,87117.0,0.0114934]
[1767064837738,0.09768,87152.0,87091.0,0.0114968]
[1767064837739,0.09768,87152.0,87120.0,0.0114931]
[1767064838040,0.09768,87152.0,87127.0,0.0001722]
[1767064840833,0.09768,87152.0,87116.0,0.03095487]
[1767064841032,0.0114896,87147.0,87114.0,0.03095487]
[1767064841234,0.0114896,87147.0,87113.0,0.03095487]
[1767064841435,0.0578,87152.0,87129.0,0.0114919]
[1767064841623,0.0578,87152.0,87137.0,0.0114907]
[1767064841827,0.0578,87152.0,87138.0,0.0114906]
[1767064842132,0.0001722,87153.0,87138.0,0.0114906]
[1767064842330,0.0579722,87153.0,87136.0,0.0001722]
[1767064843233,0.0579722,87153.0,87120.0,0.04244787]
[1767064843437,0.0579722,87153.0,87122.0,0.0114927]
[1767064843633,0.0114893,87149.0,87121.0,0.11475193]
[1767064843840,0.0114896,87147.0,87122.0,0.09768]
[1767064844329,0.0114896,87147.0,87126.0,0.0001722]
[1767064844832,0.01149,87144.0,87126.0,0.0001722]
[1767064846033,0.09768,87145.0,87113.0,0.03095487]
[1767064846342,0.09768,87145.0,87114.0,0.15548]
[1767064846548,0.0114907,87139.0,87115.0,0.15548]
[1767064846731,0.0578,87142.0,87111.0,0.03095487]
[1767064846927,0.0578,87142.0,87106.0,0.0114949]
[1767064846928,0.0114905,87140.0,87115.0,0.0578]
[1767064847134,0.0001722,87136.0,87119.0,0.0001722]
[1767064847332,0.0114897,87146.0,87119.0,0.0001722]
[1767064847637,0.0114912,87135.0,87119.0,0.0001722]
[1767064848241,0.0114916,87132.0,87119.0,0.0001722]
[1767064848438,0.15548,87147.0,87119.0,0.0001722]
[1767064848439,0.0001722,87134.0,87119.0,2.2e-06]
[1767064848643,0.011492,87129.0,87119.0,2.2e-06]
[1767064849243,0.0578,87133.0,87104.0,0.0578]
[1767064849537,0.0578,87133.0,87107.0,0.09768]
[1767064850442,0.0114934,87118.0,87111.0,2.2e-06]
[1767064850745,0.09768,87125.0,87105.0,0.09768]
[1767064851444,0.0114932,87120.0,87105.0,0.09768]
[1767064852233,0.0114941,87112.0,87091.0,0.03095487]
[1767064852542,0.0114953,87104.0,87086.0,0.09768]
[1767064853134,0.011495,87106.0,87086.0,0.09768]
[1767064853446,0.0578,87107.0,87086.0,0.0978522]
[1767064853447,0.0114954,87103.0,87086.0,0.0978522]
[1767064853642,0.0116676,87103.0,87086.0,0.0978522]
[1767064853846,0.0001722,87103.0,87086.0,0.0978522]
[1767064857548,0.0578,87108.0,87088.0,0.03095487]
[1767064857844,0.09768,87108.0,87088.0,0.03095487]
[1767064858240,0.09768,87108.0,87089.0,0.03095487]
[1767064858639,0.0001722,87107.0,87089.0,0.03095487]
[1767064860445,0.0114942,87112.0,87090.0,0.03095487]
[1767064860650,0.15548,87111.0,87090.0,0.03095487]
[1767064861350,0.09768,87120.0,87096.0,0.03095487]
[1767064861553,0.09768,87122.0,87100.0,0.03095487]
[1767064861746,0.0578,87124.0,87097.0,0.15548]
[1767064861747,0.09768,87121.0,87097.0,0.00602045]
[1767064862049,0.0114947,87108.0,87077.0,0.0114987]
[1767064862238,0.15548,87107.0,87077.0,0.0692987]
[1767064862443,0.15548,87107.0,87082.0,0.14427781]
[1767064862847,0.0001722,87103.0,87087.0,0.0114974]
[1767064863153,0.15548,87110.0,87087.0,0.0692974]
[1767064863348,0.15548,87110.0,87091.0,0.0114968]
[1767064863651,0.09768,87110.0,87093.0,0.14427781]
[1767064864147,0.09768,87110.0,87091.0,0.09768]
[1767064864148,0.0978522,87110.0,87091.0,0.09768]
[1767064864352,0.0978522,87110.0,87093.0,0.14427781]
[1767064866251,0.0978522,87110.0,87086.0,0.0001722]
[1767064866252,0.0114951,87105.0,87086.0,0.0001722]
[1767064866455,0.0578,87104.0,87086.0,0.0001722]
[1767064866850,0.0578,87104.0,87086.0,0.14445001]
[1767064868458,0.0114954,87103.0,87086.0,0.14445001]
[1767064868757,0.0114959,87099.0,87086.0,0.14445001]
[1767064869256,0.0114959,87099.0,87081.0,0.0578]
[1767064870262,0.0114959,87099.0,87081.0,0.0579722]
[1767064870458,0.25457659,87100.0,87081.0,1e-07]
[1767064870662,0.09768,87100.0,87081.0,1e-07]
[1767064871453,0.0114964,87095.0,87081.0,1e-07]
[1767064871649,0.0114971,87090.0,87081.0,1e-07]
[1767064871855,0.0114973,87088.0,87068.0,0.00229707]
[1767064872362,0.09768,87090.0,87068.0,0.00229707]
[1767064872363,0.0114978,87085.0,87068.0,0.00229707]
[1767064872752,0.01167,87085.0,87068.0,0.00246927]
[1767064873165,0.0001722,87085.0,87068.0,0.00246927]
[1767064873358,0.0114961,87098.0,87070.0,0.0114996]
[1767064873551,0.15548,87097.0,87071.0,0.0578]
[1767064874464,0.0001722,87093.0,87071.0,0.0578]
[1767064878266,0.0578,87116.0,87071.0,0.0578]
[1767064878467,0.0578,87116.0,87090.0,0.15689659]
[1767064878662,0.0578,87116.0,87089.0,0.0578]
[1767064878858,0.0114918,87130.0,87090.0,0.011497]
[1767064879064,0.09768,87129.0,87090.0,0.16839359]
[1767064879369,0.0114918,87130.0,87090.0,0.16839359]
[1767064879370,0.0001722,87118.0,87101.0,0.0001722]
[1767064881363,0.0553156,87147.0,87101.0,0.0001722]
[1767064881575,0.08212321,87152.0,87110.0,0.15689659]
[1767064881765,0.08212321,87152.0,87113.0,0.0114939]
[1767064881766,0.0114893,87149.0,87113.0,0.0114939]
[1767064882166,0.15548,87151.0,87122.0,0.0114928]
[1767064882366,0.15548,87151.0,87128.0,0.0001722]
[1767064882367,0.0001722,87145.0,87128.0,0.0001722]
[1767064884475,0.0578,87167.0,87130.0,0.15689659]
[1767064884673,0.0578,87167.0,87140.0,0.15689659]
[1767064884977,0.11298886,87173.0,87148.0,0.15689659]
[1767064885178,0.21066886,87173.0,87147.0,0.0578]
[1767064885372,0.0114862,87172.0,87151.0,0.0001721]
[1767064886282,0.05518886,87173.0,87151.0,0.011661]
[1767064886473,0.05518886,87173.0,87151.0,0.0001721]
[1767064887772,0.0578,87178.0,87153.0,0.0114886]
[1767064887972,0.00229391,87188.0,87153.0,0.0114886]
[1767064888272,0.0578,87182.0,87153.0,0.0114886]
[1767064888474,0.0578,87182.0,87155.0,0.0114884]
[1767064888680,0.00229391,87188.0,87156.0,0.15548]
[1767064888872,0.0578,87182.0,87156.0,0.15548]
[1767064889076,0.0578,87182.0,87157.0,0.11472099]
[1767064889374,0.0114851,87181.0,87158.0,0.0578]
[1767064891075,0.0114857,87177.0,87158.0,0.0578]
[1767064892081,0.0114857,87177.0,87151.0,0.0001721]
[1767064892282,0.0578,87182.0,87151.0,0.0001721]
[1767064892283,0.0114868,87168.0,87151.0,0.0001721]
[1767064893583,0.0578,87169.0,87151.0,0.0001721]
[1767064894377,0.0578,87169.0,87152.0,0.0114888]
[1767064895689,0.05776,87176.0,87152.0,0.0114888]
[1767064896188,0.05776,87176.0,87156.0,0.0114882]
[1767064896378,0.05,87183.0,87157.0,0.05776]
[1767064896590,0.011485,87181.0,87157.0,0.05776]
[1767064896882,0.1554,87182.0,87157.0,0.05776]
[1767064897875,0.011485,87181.0,87157.0,0.05776]
[1767064898084,0.1554,87182.0,87160.0,0.15689659]
[1767064898285,0.05,87183.0,87160.0,0.15689659]
[1767064899178,0.05,87183.0,87157.0,0.05776]
[1767064899479,0.05,87183.0,87158.0,0.11471639]
[1767064901581,0.05776,87201.0,87171.0,0.0114863]
[1767064901883,0.05776,87201.0,87173.0,0.011486]
[1767064902185,0.05451219,87206.0,87172.0,0.1554]
[1767064902186,0.15215219,87206.0,87185.0,0.0114845]
[1767064902375,0.15215219,87206.0,87186.0,0.05776]
[1767064903173,0.0114819,87205.0,87186.0,0.05776]
[1767064903379,0.15215219,87206.0,87186.0,0.05776]
[1767064903578,0.0114819,87205.0,87186.0,0.05776]
[1767064903981,0.15215219,87206.0,87171.0,0.0001721]
[1767064904184,0.0114838,87191.0,87172.0,0.1056]
[1767064904387,0.05776,87192.0,87171.0,0.0001721]
[1767064904690,0.05776,87192.0,87172.0,0.05776]
[1767064905087,0.05776,87193.0,87172.0,0.0692462]
[1767064905289,0.05451219,87206.0,87172.0,0.0692462]
[1767064905488,0.1668419,87205.0,87172.0,0.0692462]
[1767064905684,0.15536,87204.0,87180.0,0.15689659]
[1767064905877,0.15536,87204.0,87181.0,0.05776]
[1767064906691,0.05451219,87206.0,87186.0,0.0114843]
[1767064906984,0.11227219,87206.0,87186.0,0.0114843]
[1767064907185,0.11227219,87206.0,87181.0,0.0692449]
[1767064907594,0.11227219,87206.0,87181.0,0.05776]
[1767064908882,0.011482,87204.0,87181.0,0.05776]
[1767064910391,0.011482,87204.0,87182.0,0.05776]
[1767064911189,0.11227219,87206.0,87182.0,0.05776]
[1767064911393,0.11227219,87206.0,87178.0,0.05776]
[1767064911988,0.0114829,87197.0,87178.0,0.05776]
[1767064912197,0.15536,87196.0,87178.0,0.05776]
[1767064912696,0.0114833,87195.0,87178.0,0.05776]
[1767064914599,0.15536,87196.0,87179.0,0.0114852]
[1767064915498,0.15536,87196.0,87178.0,0.05776]
[1767064917191,0.05772,87195.0,87178.0,0.05776]
[1767064918695,0.0114819,87205.0,87178.0,0.05776]
[1767064918892,0.05772,87204.0,87178.0,0.05776]
[1767064919197,0.0114826,87200.0,87178.0,0.05776]
[1767064921101,0.0114827,87199.0,87178.0,0.05776]
[1767064921600,0.05772,87201.0,87179.0,0.11469402]
[1767064921804,0.05772,87201.0,87180.0,0.15689659]
[1767064922103,0.11223219,87206.0,87180.0,0.15689659]
[1767064922401,0.11223219,87206.0,87181.0,0.11469402]
[1767064922588,0.05451219,87206.0,87186.0,0.0114843]
[1767064922791,0.05772,87208.0,87187.0,0.15532]
[1767064922992,0.05772,87209.0,87189.0,0.0001721]
[1767064923501,0.0692014,87209.0,87189.0,0.0001721]
[1767064923697,0.05772,87209.0,87189.0,0.0001721]
[1767064923894,0.0114824,87201.0,87190.0,0.05772]
[1767064924097,0.05772,87209.0,87190.0,0.05772]
[1767064924497,0.0114823,87202.0,87189.0,0.0001721]
[1767064924702,0.05772,87201.0,87189.0,0.0001721]
[1767064925400,0.0114825,87200.0,87183.0,0.05772]
[1767064926508,0.01165424,87200.0,87183.0,0.0578921]
[1767064927216,0.00017174,87200.0,87183.0,0.0578921]
[1767064928816,0.00017174,87200.0,87183.0,0.0001721]
[1767064929000,0.0114831,87196.0,87183.0,0.0001721]
[1767064929199,0.0114835,87193.0,87176.0,0.04092828]
[1767064929408,0.0114837,87191.0,87175.0,0.05772]
[1767064931418,0.0114837,87191.0,87176.0,0.04092828]
[1767064932912,0.15532,87192.0,87176.0,0.04092828]
[1767064933413,0.0114837,87191.0,87176.0,0.04092828]
[1767064935124,0.15532,87192.0,87176.0,0.04092828]
[1767064935320,0.15532,87192.0,87177.0,0.04092828]
[1767064935521,0.05772,87191.0,87177.0,0.04092828]
[1767064935721,0.05772,87196.0,87178.0,0.04092828]
[1767064936019,0.00017174,87200.0,87178.0,0.05241368]
[1767064936219,0.00017174,87200.0,87180.0,0.0114851]
[1767064936424,0.00017174,87200.0,87183.0,0.0114847]
[1767064936625,0.0976,87208.0,87184.0,0.05772]
[1767064936830,0.05772,87207.0,87184.0,0.05772]
[1767064937118,0.0114818,87206.0,87184.0,0.05772]
[1767064937322,0.05772,87207.0,87184.0,0.05772]
[1767064937625,0.0001721,87204.0,87184.0,0.05772]
[1767064939820,0.0114823,87202.0,87184.0,0.05772]
[1767064940327,0.0114827,87199.0,87184.0,0.05772]
[1767064941327,0.0116541,87204.0,87184.0,0.05772]
[1767064941522,0.0114827,87199.0,87184.0,0.05772]
[1767064941826,0.0976,87198.0,87181.0,0.04092828]
[1767064943232,0.0976,87198.0,87182.0,0.04092828]
[1767064944928,0.0976,87198.0,87181.0,0.04092828]
[1767064945328,0.0976,87198.0,87182.0,0.04092828]
[1767064945623,0.0976,87198.0,87181.0,0.04092828]
[1767064945830,0.0976,87198.0,87182.0,0.04092828]
[1767064946130,0.0976,87198.0,87181.0,0.04092828]
[1767064946430,0.011483,87197.0,87182.0,0.04092828]
[1767064946926,0.011483,87197.0,87181.0,0.04092828]
[1767064947126,0.011483,87197.0,87182.0,0.04092828]
[1767064947527,0.0976,87198.0,87179.0,0.04092828]
[1767064947723,0.0114834,87194.0,87179.0,0.04092828]
[1767064948324,0.0114837,87191.0,87179.0,0.04092828]
[1767064949933,0.05768,87192.0,87178.0,0.05772]
[1767064950131,0.05768,87192.0,87179.0,0.04092828]
[1767064950526,0.0114827,87199.0,87179.0,0.04092828]
[1767064950721,0.15528,87198.0,87182.0,0.0114848]
[1767064951126,0.15528,87198.0,87180.0,0.04092828]
[1767064951530,0.15528,87198.0,87181.0,0.011485]
[1767064951726,0.15528,87198.0,87180.0,0.04092828]
[1767064951932,0.15528,87198.0,87181.0,0.04092828]
[1767064952626,0.0001721,87204.0,87181.0,0.04092828]
[1767064952832,0.15528,87203.0,87181.0,0.04092828]
[1767064953026,0.15528,87202.0,87181.0,0.04092828]
[1767064953336,0.0114825,87200.0,87181.0,0.04092828]
[1767064954232,0.15528,87202.0,87182.0,0.04092828]
[1767064955440,0.0114831,87196.0,87182.0,0.04092828]
[1767064956343,0.15528,87202.0,87182.0,0.04092828]
[1767064957635,0.15528,87202.0,87184.0,0.04092828]
[1767064959339,0.0114824,87201.0,87184.0,0.04092828]
[1767064962344,0.0114824,87201.0,87181.0,0.06190431]
[1767064962345,0.0114824,87201.0,87185.0,0.04092828]
[1767064962845,0.0114824,87201.0,87184.0,0.04092828]
[1767064963347,0.0114828,87198.0,87184.0,0.04092828]
[1767064963546,0.05768,87197.0,87184.0,0.04092828]
[1767064963735,0.0114831,87196.0,87184.0,0.04092828]
[1767064963940,0.0114835,87193.0,87182.0,0.04092828]
[1767064964239,0.0691629,87197.0,87183.0,0.04092828]
[1767064964439,0.0114834,87194.0,87183.0,0.04092828]
[1767064965742,0.05768,87197.0,87183.0,0.04092828]
[1767064966146,0.0114844,87186.0,87178.0,0.05772]
[1767064966449,0.0976,87199.0,87169.0,0.05768]
[1767064966450,0.05768,87187.0,87169.0,0.05768]
[1767064966635,0.05768,87186.0,87169.0,0.05768]
[1767064966840,0.05768,87185.0,87169.0,0.05768]
[1767064967448,0.0114849,87182.0,87169.0,0.05768]
[1767064967643,0.0114847,87184.0,87169.0,0.05768]
[1767064967850,0.0114847,87184.0,87168.0,0.0001721]
[1767064968949,0.011485,87181.0,87168.0,0.0001721]
[1767064969947,0.05768,87185.0,87168.0,0.0001721]
[1767064970141,0.05768,87185.0,87164.0,0.05768]
[1767064970342,0.05768,87185.0,87161.0,0.0976]
[1767064970741,0.05768,87185.0,87158.0,0.0022947]
[1767064971042,0.05768,87185.0,87159.0,0.11471244]
[1767064971241,0.05768,87185.0,87163.0,0.0001721]
[1767064972246,0.0114853,87179.0,87163.0,0.0001721]
[1767064972447,0.0001721,87186.0,87163.0,0.0001721]
[1767064972448,0.15528,87178.0,87163.0,0.0001721]
[1767064972647,0.0976,87177.0,87163.0,0.0001721]
[1767064973245,0.011486,87174.0,87163.0,0.0001721]
[1767064973450,0.0976,87177.0,87163.0,0.0001721]
[1767064974154,0.0976,87177.0,87158.0,0.0022947]
[1767064975247,0.0976,87177.0,87159.0,0.0001721]
[1767064976758,0.0114858,87176.0,87159.0,0.0001721]
[1767064977356,0.0976,87177.0,87159.0,0.0001721]
[1767064979056,0.15528,87176.0,87159.0,0.0001721]
[1767064983063,0.15528,87176.0,87159.0,0.01166]
[1767064985057,0.15528,87176.0,87159.0,0.0001721]
[1767064985260,0.15663472,87170.0,87159.0,0.0001721]
[1767064985463,0.05768,87169.0,87159.0,2.1e-06]
[1767064985863,0.0001721,87186.0,87159.0,2.1e-06]
[1767064986160,0.05768,87185.0,87159.0,2.1e-06]
[1767064986362,0.0976,87185.0,87160.0,0.1147256]
[1767064986560,0.05768,87189.0,87175.0,0.15663472]
[1767064986753,0.05768,87189.0,87170.0,0.15663472]
[1767064986955,0.0976,87194.0,87180.0,0.0114851]
[1767064987164,0.05768,87193.0,87180.0,0.0114851]
[1767064987464,0.05768,87193.0,87180.0,0.16811982]
[1767064988762,0.0001721,87195.0,87180.0,0.16811982]
[1767064989268,0.0001721,87195.0,87184.0,0.0114846]
[1767064989560,0.0575032,87194.0,87184.0,0.0114846]
[1767064990760,0.0575032,87194.0,87178.0,0.0116574]
[1767064990962,0.0575032,87194.0,87178.0,0.0001721]
[1767064992255,0.0575032,87194.0,87180.0,0.15663472]
[1767064992654,0.0575032,87194.0,87179.0,0.0114852]
[1767064992863,0.0575032,87194.0,87179.0,0.0114853]
[1767064993063,0.0575032,87194.0,87180.0,0.15663472]
[1767064993258,0.0575032,87194.0,87179.0,0.0114853]
[1767064993564,0.0575032,87194.0,87180.0,0.15663472]
[1767064993753,0.0575032,87194.0,87178.0,0.0001721]
[1767064993953,0.05768,87193.0,87180.0,0.15663472]
[1767064994965,0.05768,87193.0,87178.0,0.0001721]
[1767064995262,0.02773472,87210.0,87180.0,0.15663472]
[1767064995459,0.54793274,87234.0,87206.0,4e-05]
[1767064995460,0.05768,87226.0,87206.0,4e-05]
[1767064995661,0.0976,87228.0,87216.0,0.16811512]
[1767064995852,0.0976,87228.0,87210.0,0.15663472]
[1767064995853,0.02900084,87234.0,87224.0,0.0114793]
[1767064996058,0.05768,87233.0,87217.0,0.0114802]
[1767064996357,0.15528,87232.0,87221.0,0.0114797]
[1767064996561,0.05768,87231.0,87219.0,0.11468547]
[1767064996765,0.05768,87231.0,87216.0,0.00017198]
[1767064998866,0.00017198,87234.0,87216.0,0.01165238]
[1767064999066,0.15528,87233.0,87220.0,0.0114798]
[1767064999970,0.00017198,87234.0,87216.0,0.00017198]
[1767065000176,8e-08,87234.0,87216.0,0.00017198]
[1767065000475,0.09756,87246.0,87235.0,0.0114779]
[1767065000663,1e-08,87248.0,87235.0,0.0114779]
[1767065001166,0.0541215,87269.0,87236.0,0.11464603]
[1767065001366,0.16064009,87268.0,87227.0,0.09756]
[1767065001667,0.00017198,87261.0,87229.0,0.11464603]
[1767065002066,0.00017198,87261.0,87219.0,0.12159842]
[1767065002067,0.15638895,87260.0,87219.0,0.12159842]
[1767065002267,0.011475,87258.0,87220.0,0.0114798]
[1767065002469,0.0114753,87255.0,87220.0,0.12609626]
[1767065002669,0.09756,87257.0,87220.0,0.12609626]
[1767065002670,0.0114758,87251.0,87229.0,0.00017198]
[1767065002865,0.05768,87250.0,87229.0,0.00017198]
[1767065004273,0.00017198,87261.0,87230.0,0.27101592]
[1767065004464,0.15524,87260.0,87236.0,0.0114778]
[1767065004773,0.05768,87259.0,87236.0,0.0114778]
[1767065004974,0.09756,87258.0,87231.0,0.0114783]
[1767065005376,0.05768,87257.0,87235.0,0.0114779]
[1767065005672,0.15524,87256.0,87235.0,0.0114779]
[1767065005869,0.15524,87256.0,87236.0,0.11461843]
[1767065006560,0.00017198,87261.0,87237.0,0.0114776]
[1767065006975,0.15524,87260.0,87237.0,0.0114776]
[1767065007272,0.15524,87260.0,87229.0,0.15541198]
[1767065007470,0.31162895,87260.0,87229.0,0.15541198]
[1767065007664,0.011475,87257.0,87230.0,0.11461843]
[1767065008071,0.15524,87260.0,87230.0,0.11461843]
[1767065008275,0.15524,87259.0,87230.0,0.12609683]
[1767065008664,0.166715,87258.0,87230.0,0.11461843]
[1767065009268,0.0114754,87254.0,87229.0,0.09773198]
[1767065009474,0.15524,87258.0,87229.0,0.00017198]
[1767065010174,0.1552,87257.0,87230.0,0.11462434]
[1767065010474,0.0114752,87256.0,87230.0,0.11462434]
[1767065012280,0.0114757,87252.0,87229.0,0.00017198]
[1767065013580,0.0114763,87248.0,87229.0,0.00017198]
[1767065013775,0.1552,87247.0,87229.0,0.00017198]
[1767065017373,0.1552,87247.0,87230.0,0.0114786]
[1767065017775,0.1552,87247.0,87229.0,0.00017198]
[1767065018578,0.1552,87247.0,87230.0,0.15635637]
[1767065019183,0.1552,87247.0,87229.0,0.01165068]
[1767065019478,0.1552,87247.0,87230.0,0.15635637]
[1767065019782,0.05764,87246.0,87231.0,0.0114784]
[1767065020078,0.05764,87245.0,87231.0,0.0114784]
[1767065020393,0.05764,87244.0,87231.0,0.0114784]
[1767065021795,0.15635637,87260.0,87230.0,0.15635637]
[1767065021986,0.15516,87259.0,87240.0,0.15635637]
[1767065022187,0.15516,87259.0,87230.0,0.1146296]
[1767065022383,0.15516,87258.0,87240.0,0.15635637]
[1767065022584,0.15516,87258.0,87229.0,0.00017198]
[1767065022793,0.15516,87258.0,87230.0,0.1146296]
[1767065023188,0.0114757,87252.0,87230.0,0.1146296]
[1767065023398,0.05764,87251.0,87230.0,0.1146296]
[1767065023589,0.05764,87251.0,87229.0,0.00017198]
[1767065023590,0.011476,87250.0,87229.0,0.00017198]
[1767065024203,0.05764,87251.0,87229.0,0.00017198]
[1767065025492,0.02467092,87250.0,87229.0,0.00017198]
[1767065025690,0.05764,87251.0,87229.0,0.00017198]
[1767065025892,0.02467092,87250.0,87229.0,0.00017198]
[1767065026091,0.05764,87251.0,87229.0,0.00017198]
[1767065026399,0.02467092,87250.0,87229.0,0.00017198]
[1767065026593,0.02467092,87249.0,87229.0,0.00017198]
[1767065026792,0.0114772,87241.0,87219.0,0.06182921]
[1767065026993,0.0114772,87241.0,87218.0,0.00229312]
[1767065026994,0.08231431,87240.0,87218.0,0.00229312]
[1767065027201,0.02467431,87239.0,87218.0,0.00229312]
[1767065027503,0.09752,87238.0,87218.0,0.00229312]
[1767065027902,0.02485264,87237.0,87216.0,0.0114803]
[1767065028099,0.03615846,87236.0,87213.0,0.05764]
[1767065028297,0.0114781,87234.0,87209.0,0.0114813]
[1767065028596,0.05764,87233.0,87209.0,0.0114813]
[1767065028999,0.05764,87233.0,87212.0,0.00017198]
[1767065029201,0.0114783,87232.0,87212.0,0.00017198]
[1767065031704,0.0114788,87229.0,87212.0,0.00017198]
[1767065031902,0.09752,87228.0,87212.0,0.00017198]
[1767065033302,0.05764,87227.0,87212.0,0.00017198]
[1767065033601,0.15516,87227.0,87212.0,0.00017198]
[1767065035311,0.0114795,87223.0,87200.0,0.0114825]
[1767065035508,0.0114795,87223.0,87199.0,0.09752]
[1767065036211,0.15516,87227.0,87202.0,0.00011677]
[1767065036405,0.0114792,87226.0,87202.0,0.00011677]
[1767065036606,0.0114792,87226.0,87202.0,6.677e-05]
[1767065038507,0.0114796,87223.0,87195.0,0.06182921]
[1767065038812,0.0114796,87223.0,87193.0,0.06182921]
[1767065039111,0.0114799,87220.0,87193.0,0.11466706]
[1767065039412,0.05764,87219.0,87193.0,0.11466706]
[1767065039712,0.00017198,87215.0,87193.0,0.11461706]
[1767065039908,0.09756,87214.0,87193.0,0.17644627]
[1767065040309,0.09751,87214.0,87193.0,0.17644627]
[1767065040507,0.09751,87214.0,87193.0,0.11461706]
[1767065040708,0.09751,87214.0,87188.0,0.07141791]
[1767065041011,0.09751,87214.0,87191.0,0.0114836]
[1767065041306,0.1552,87213.0,87191.0,0.0114836]
[1767065042101,0.00017198,87215.0,87197.0,0.0114828]
[1767065042301,0.1552,87214.0,87197.0,0.0114828]
[1767065043204,0.00017198,87215.0,87190.0,0.1563307]
[1767065043405,0.28412321,87252.0,87209.0,0.0114813]
[1767065043705,0.0114778,87236.0,87209.0,0.0114813]
[1767065044011,0.011478,87234.0,87205.0,0.0114818]
[1767065044211,0.09756,87233.0,87205.0,0.0114818]
[1767065044513,0.0114784,87232.0,87205.0,0.0114818]
[1767065044808,0.00017198,87228.0,87210.0,0.00017198]
[1767065045010,0.0114795,87223.0,87204.0,0.05764]
[1767065045196,0.1090395,87223.0,87204.0,0.05764]
[1767065045405,0.1090395,87223.0,87202.0,0.09756]
[1767065045909,0.00017198,87228.0,87203.0,0.11465457]
[1767065045910,0.1552,87222.0,87203.0,0.11465457]
[1767065046104,0.00017198,87228.0,87203.0,0.11465457]
[1767065046306,0.1552,87227.0,87203.0,0.11465457]
[1767065047411,0.1552,87227.0,87204.0,0.0114819]
[1767065048511,0.1552,87227.0,87205.0,0.05764]
[1767065049311,0.1552,87227.0,87206.0,0.0114817]
[1767065050317,0.00017198,87228.0,87209.0,0.0114813]
[1767065050505,0.00017198,87228.0,87205.0,0.05764]
[1767065050506,0.1552,87227.0,87212.0,0.0114809]
[1767065051307,0.15515,87227.0,87212.0,0.0114809]
[1767065053812,0.15515,87227.0,87208.0,0.0114814]
[1767065054206,0.05764,87226.0,87208.0,0.0114814]
[1767065055008,0.05764,87226.0,87205.0,0.05764]
[1767065055517,0.00017198,87228.0,87205.0,0.05764]
[1767065055816,0.13644,87227.0,87205.0,0.0691218]
[1767065056519,0.13644,87227.0,87205.0,0.05764]
[1767065059922,0.00017198,87228.0,87205.0,0.05764]
[1767065060219,0.00017198,87228.0,87205.0,0.11946921]
[1767065060824,0.00017198,87228.0,87207.0,0.06182921]
[1767065061120,0.00017198,87228.0,87208.0,0.06182921]
[1767065061121,0.05764,87227.0,87208.0,0.06182921]
[1767065061724,0.00017198,87228.0,87208.0,0.06182921]
[1767065061912,0.00017198,87228.0,87209.0,0.1146572]
[1767065062312,0.202,87252.0,87205.0,0.05764]
[1767065062313,0.09756,87243.0,87212.0,0.06182921]
[1767065062524,0.05764,87243.0,87214.0,0.06182921]
[1767065062712,0.05764,87243.0,87217.0,0.06182921]
[1767065062913,0.0114761,87249.0,87219.0,0.01148]
[1767065063113,0.01136,87248.0,87222.0,0.0114795]
[1767065063314,0.01136,87248.0,87223.0,0.1552]
[1767065063621,0.00017198,87244.0,87227.0,0.00017198]
[1767065064212,0.00017198,87244.0,87228.0,0.11463223]
[1767065066220,0.05764,87258.0,87232.0,0.0114782]
[1767065066521,0.1552,87258.0,87233.0,0.1552]
[1767065066920,0.1552,87258.0,87233.0,0.26983157]
[1767065067112,0.0114741,87265.0,87234.0,0.011478]
[1767065067313,0.00017198,87258.0,87241.0,0.00017198]
[1767065070209,0.0114751,87257.0,87233.0,0.09756]
[1767065070414,0.0114751,87257.0,87234.0,0.05764]
[1767065071115,0.00017198,87258.0,87228.0,0.09752]
[1767065071419,0.00017198,87258.0,87234.0,1.98e-06]
[1767065072116,0.0114767,87245.0,87234.0,1.98e-06]
[1767065073228,0.15516,87247.0,87234.0,1.98e-06]
[1767065078528,0.011476,87250.0,87234.0,1.98e-06]
[1767065078830,0.0114765,87246.0,87234.0,1.98e-06]
[1767065079030,0.0114769,87243.0,87234.0,1.98e-06]
[1767065079728,0.0114773,87240.0,87221.0,0.15516]
[1767065080024,0.05764,87239.0,87221.0,0.15516]
[1767065080224,0.0114763,87248.0,87221.0,0.15516]
[1767065080419,0.01136,87248.0,87221.0,0.15516]
[1767065080619,0.01136,87248.0,87222.0,0.11462828]
[1767065080821,0.00017198,87244.0,87223.0,0.0114794]
[1767065081423,0.00017198,87244.0,87224.0,0.11463288]
[1767065081626,0.00017198,87244.0,87225.0,0.0114791]
[1767065081934,1.98e-06,87244.0,87231.0,0.0114784]
[1767065082128,1.98e-06,87244.0,87231.0,0.09752]
[1767065083030,1.98e-06,87244.0,87232.0,0.1146296]
[1767065083228,1.98e-06,87244.0,87236.0,0.0114778]
[1767065083627,0.09752,87263.0,87236.0,0.0114778]
[1767065083836,0.15516,87263.0,87237.0,0.1146296]